fUST/lending_fUST_20250702
["ID","MTS","AMOUNT","RATE_DAILY","PERIOD"]
[369024254,1751435474129,-491.57,0.00020821,2]
[369024256,1751435474138,-460.0,0.00020821,2]
[369024258,1751435474147,-957.96,0.00020821,2]
[369024260,1751435474157,-540.06,0.00020821,2]
[369024262,1751435474166,-572.44,0.00020821,2]
[369024264,1751435474175,-694.23,0.00020821,2]
[369024266,1751435474184,-610.14,0.00020821,2]
[369024268,1751435474194,-2558.5,0.00020821,2]
[369024270,1751435474203,-1189.61,0.00020821,2]
[369024272,1751435474212,-460.0,0.00020821,2]
[369024274,1751435474222,-460.0,0.00020821,2]
[369024276,1751435474232,-717.98,0.00020821,2]
[369024278,1751435474241,-460.0,0.00020821,2]
[369024280,1751435474251,-1706.54,0.00020821,2]
[369024282,1751435474260,-460.0,0.00020821,2]
[369024284,1751435474269,-586.28,0.00020821,2]
[369024286,1751435474279,-460.0,0.00020821,2]
[369024288,1751435474288,-542.08,0.00020821,2]
[369024290,1751435474298,-498.33,0.00020821,2]
[369024292,1751435474307,-892.01,0.00020821,2]
[369024294,1751435474317,-460.0,0.00020821,2]
[369024296,1751435474327,-557.21,0.00020821,2]
[369024298,1751435474336,-464.91,0.00020821,2]
[369024300,1751435474345,-365.16,0.00020821,2]
[369024302,1751435474355,-1982.14,0.00020821,2]
[369024304,1751435474364,-805.18,0.00020821,2]
[369024306,1751435474374,-1305.93,0.00020821,2]
[369024308,1751435474383,-585.63,0.00020821,2]
[369024310,1751435474393,-2303.07,0.00020821,2]
[369024312,1751435474406,-606.45,0.00020821,2]
[369024314,1751435474415,-536.29,0.00020821,2]
[369024316,1751435474425,-601.18,0.00020821,2]
[369024318,1751435474434,-590.71,0.00020821,2]
[369024320,1751435474444,-3397.94,0.00020821,2]
[369024322,1751435474454,-3750.4,0.00020821,2]
[369024324,1751435474463,-1515.14,0.00020821,2]
[369024326,1751435474472,-460.0,0.00020821,2]
[369024328,1751435474483,-616.24,0.00020821,2]
[369024329,1751435474494,-460.0,0.00020821,2]
[369024331,1751435474504,-460.0,0.00020821,2]
[369024333,1751435474514,-655.73,0.00020821,2]
[369024336,1751435474525,-460.0,0.00020821,2]
[369024337,1751435474535,-749.23,0.00020821,2]
[369024340,1751435474545,-460.0,0.00020821,2]
[369024342,1751435474555,-1462.48,0.00020821,2]
[369024344,1751435474565,-1132.2,0.00020821,2]
[369024346,1751435474574,-460.0,0.00020821,2]
[369024348,1751435474584,-3457.94,0.00020821,2]
[369024350,1751435474594,-831.2,0.00020821,2]
[369024352,1751435474603,-717.17,0.00020821,2]
[369024354,1751435474613,-968.29,0.00020821,2]
[369024356,1751435474623,-1091.0,0.00020899,2]
[369024358,1751435474632,-195.76878551,0.0002095,2]
[369024360,1751435474642,-1091.0,0.00020975,2]
[369024362,1751435474651,-553.97,0.00021095,2]
[369024363,1751435474661,-460.0,0.00021095,2]
[369024365,1751435474670,-460.0,0.00021095,2]
[369024368,1751435474681,-203.5530837,0.00021095,2]
[369024370,1751435474693,-151.0,0.00021095,2]
[369024372,1751435474702,-209.194205,0.00021095,2]
[369024374,1751435474712,-209.194205,0.00021095,2]
[369024376,1751435474722,-151.656345,0.00021095,2]
[369024378,1751435474731,-151.0,0.00021095,2]
[369024380,1751435474741,-254.678203,0.00021095,2]
[369024382,1751435474752,-151.0,0.00021095,2]
[369024383,1751435474761,-571.82,0.00021095,2]
[369024385,1751435474771,-254.678203,0.00021095,2]
[369024387,1751435474781,-235.427028,0.00021095,2]
[369024389,1751435474791,-235.427028,0.00021095,2]
[369024391,1751435474800,-151.0,0.00021095,2]
[369024393,1751435474810,-460.0,0.00021095,2]
[369024395,1751435474820,-460.0,0.00021095,2]
[369024397,1751435474830,-466.63,0.00021095,2]
[369024399,1751435474840,-460.0,0.00021095,2]
[369024401,1751435474849,-460.0,0.00021095,2]
[369024403,1751435474859,-796.28,0.00021095,2]
[369024405,1751435474869,-711.16,0.00021095,2]
[369024407,1751435474879,-505.4,0.00021095,2]
[369024409,1751435474889,-460.0,0.00021095,2]
[369024412,1751435474898,-643.22,0.00021095,2]
[369024413,1751435474908,-539.42,0.00021095,2]
[369024415,1751435474918,-460.0,0.00021095,2]
[369024418,1751435474928,-460.0,0.00021095,2]
[369024420,1751435474938,-699.52,0.00021095,2]
[369024422,1751435474948,-759.15,0.00021095,2]
[369024423,1751435474957,-460.0,0.00021095,2]
[369024425,1751435474967,-709.55,0.00021095,2]
[369024427,1751435474977,-460.0,0.00021095,2]
[369024429,1751435474987,-1052.43,0.00021095,2]
[369024431,1751435474996,-554.53,0.00021095,2]
[369024434,1751435475007,-826.53,0.00021095,2]
[369024436,1751435475017,-1004.9,0.00021095,2]
[369024438,1751435475026,-2911.25,0.00021095,2]
[369024440,1751435475036,-460.0,0.00021095,2]
[369024442,1751435475047,-728.14,0.00021095,2]
[369024444,1751435475056,-491.57,0.00021095,2]
[369024446,1751435475066,-460.0,0.00021095,2]
[369024448,1751435475076,-957.96,0.00021095,2]
[369024450,1751435475086,-540.06,0.00021095,2]
[369024452,1751435475095,-572.44,0.00021095,2]
[369024454,1751435475105,-694.23,0.00021095,2]
[369024456,1751435475115,-610.14,0.00021095,2]
[369024458,1751435475124,-2558.5,0.00021095,2]
[369024460,1751435475134,-1189.61,0.00021095,2]
[369024462,1751435475143,-460.0,0.00021095,2]
[369024464,1751435475153,-551.44734605,0.00021095,2]
[369024466,1751435475163,-717.98,0.00021095,2]
[369024468,1751435475172,-460.0,0.00021095,2]
[369024470,1751435475182,-1706.54,0.00021095,2]
[369024472,1751435475192,-460.0,0.00021095,2]
[369024474,1751435475201,-586.28,0.00021095,2]
[369024476,1751435475211,-460.0,0.00021095,2]
[369024478,1751435475221,-542.08,0.00021095,2]
[369024480,1751435475231,-498.33,0.00021095,2]
[369024495,1751435475368,-892.01,0.00021095,2]
[369024497,1751435475379,-335.60995805,0.00021095,2]
[369024499,1751435475388,-557.21,0.00021095,2]
[369024501,1751435475398,-464.91,0.00021095,2]
[369024503,1751435475411,-1982.14,0.00021095,2]
[369024505,1751435475421,-805.18,0.00021095,2]
[369024507,1751435475430,-1305.93,0.00021095,2]
[369024509,1751435475440,-585.63,0.00021095,2]
[369024511,1751435475450,-2303.07,0.00021095,2]
[369024513,1751435475461,-606.45,0.00021095,2]
[369024515,1751435475470,-536.29,0.00021095,2]
[369024517,1751435475482,-601.18,0.00021095,2]
[369024519,1751435475491,-590.71,0.00021095,2]
[369024521,1751435475503,-3397.94,0.00021095,2]
[369024523,1751435475513,-3750.4,0.00021095,2]
[369024525,1751435475523,-1515.14,0.00021095,2]
[369024527,1751435475533,-460.0,0.00021095,2]
[369024529,1751435475542,-616.24,0.00021095,2]
[369024531,1751435475552,-460.0,0.00021095,2]
[369024533,1751435475562,-460.0,0.00021095,2]
[369024535,1751435475572,-655.73,0.00021095,2]
[369024538,1751435475582,-460.0,0.00021095,2]
[369024540,1751435475592,-460.0,0.00021095,2]
[369024542,1751435475602,-749.23,0.00021095,2]
[369024544,1751435475612,-1462.48,0.00021095,2]
[369024546,1751435475622,-1132.2,0.00021095,2]
[369024548,1751435475632,-460.0,0.00021095,2]
[369024550,1751435475641,-3457.94,0.00021095,2]
[369024552,1751435475651,-831.2,0.00021095,2]
[369024554,1751435475660,-717.17,0.00021095,2]
[369024556,1751435475670,-968.29,0.00021095,2]
[369024558,1751435475679,-293.7,0.000211,4]
[369024560,1751435475689,-550.58455267,0.00021155,2]
[369024562,1751435475699,-1077.0,0.00021235,2]
[369024564,1751435475709,-823.0,0.00021251,2]
[369024566,1751435475719,-380.0,0.00021251,2]
[369024568,1751435475729,-628.87210824,0.00021276,2]
[369024570,1751435475738,-553.97,0.00021369,2]
[369024572,1751435475748,-460.0,0.00021369,2]
[369024574,1751435475757,-571.82,0.00021369,2]
[369024576,1751435475767,-460.0,0.00021369,2]
[369024578,1751435475776,-460.0,0.00021369,2]
[369024580,1751435475786,-466.63,0.00021369,2]
[369024582,1751435475794,-460.0,0.00021369,2]
[369024584,1751435475804,-460.0,0.00021369,2]
[369024586,1751435475814,-796.28,0.00021369,2]
[369024588,1751435475824,-711.16,0.00021369,2]
[369024590,1751435475834,-505.4,0.00021369,2]
[369024592,1751435475843,-460.0,0.00021369,2]
[369024594,1751435475853,-643.22,0.00021369,2]
[369024596,1751435475863,-539.42,0.00021369,2]
[369024598,1751435475872,-602.79560583,0.00021369,2]
[369024600,1751435475881,-460.0,0.00021369,2]
[369024602,1751435475891,-699.52,0.00021369,2]
[369024604,1751435475900,-759.15,0.00021369,2]
[369024606,1751435475911,-460.0,0.00021369,2]
[369024608,1751435475920,-709.55,0.00021369,2]
[369024609,1751435475930,-340.90466998,0.00021369,2]
[369024611,1751435475939,-1052.43,0.00021369,2]
[369024613,1751435475949,-554.53,0.00021369,2]
[369024616,1751435475959,-826.53,0.00021369,2]
[369024617,1751435475968,-1004.9,0.00021369,2]
[369024619,1751435475978,-2911.25,0.00021369,2]
[369024622,1751435475988,-151.0,0.00021369,2]
[369024624,1751435475998,-460.0,0.00021369,2]
[369024625,1751435476008,-151.0,0.00021369,2]
[369024627,1751435476018,-728.14,0.00021369,2]
[369024630,1751435476027,-491.57,0.00021369,2]
[369024632,1751435476036,-460.0,0.00021369,2]
[369024634,1751435476047,-957.96,0.00021369,2]
[369024636,1751435476056,-540.06,0.00021369,2]
[369024638,1751435476066,-572.44,0.00021369,2]
[369024640,1751435476075,-694.23,0.00021369,2]
[369024642,1751435476084,-610.14,0.00021369,2]
[369024644,1751435476094,-2558.5,0.00021369,2]
[369024645,1751435476103,-1189.61,0.00021369,2]
[369024647,1751435476112,-341.79353927,0.00021369,2]
[369024649,1751435476122,-717.98,0.00021369,2]
[369024651,1751435476131,-1706.54,0.00021369,2]
[369024654,1751435476142,-460.0,0.00021369,2]
[369024656,1751435476151,-460.0,0.00021369,2]
[369024658,1751435476160,-586.28,0.00021369,2]
[369024659,1751435476170,-460.0,0.00021369,2]
[369024661,1751435476179,-542.08,0.00021369,2]
[369024663,1751435476189,-498.33,0.00021369,2]
[369024665,1751435476199,-892.01,0.00021369,2]
[369024668,1751435476208,-557.21,0.00021369,2]
[369024670,1751435476218,-464.91,0.00021369,2]
[369024672,1751435476227,-1982.14,0.00021369,2]
[369024674,1751435476237,-805.18,0.00021369,2]
[369024675,1751435476247,-1305.93,0.00021369,2]
[369024677,1751435476256,-585.63,0.00021369,2]
[369024679,1751435476266,-151.0,0.00021369,2]
[369024681,1751435476276,-2303.07,0.00021369,2]
[369024685,1751435476297,-606.45,0.00021369,2]
[369024688,1751435476318,-151.0,0.00021369,2]
[369024691,1751435476337,-536.29,0.00021369,2]
[369024694,1751435476357,-601.18,0.00021369,2]
[369024697,1751435476374,-590.71,0.00021369,2]
[369024700,1751435476398,-3397.94,0.00021369,2]
[369024703,1751435476419,-3750.4,0.00021369,2]
[369024706,1751435476435,-1515.14,0.00021369,2]
[369024709,1751435476456,-279.87969141,0.00021369,2]
[369024711,1751435476471,-616.24,0.00021369,2]
[369024714,1751435476487,-460.0,0.00021369,2]
[369024717,1751435476505,-460.0,0.00021369,2]
[369024720,1751435476525,-655.73,0.00021369,2]
[369024723,1751435476545,-460.0,0.00021369,2]
[369024724,1751435476561,-460.0,0.00021369,2]
[369024725,1751435476575,-749.23,0.00021369,2]
[369024726,1751435476596,-1462.48,0.00021369,2]
[369024727,1751435476611,-1132.2,0.00021369,2]
[369024728,1751435476626,-460.0,0.00021369,2]
[369024729,1751435476644,-3457.94,0.00021369,2]
[369024730,1751435476656,-831.2,0.00021369,2]
[369024731,1751435476673,-968.29,0.00021369,2]
[369024732,1751435476688,-717.17,0.00021369,2]
[369024733,1751435476703,-500.0,0.00021406,2]
[369024734,1751435476717,-1091.0,0.00021523,2]
[369024736,1751435476733,-151.0,0.00021555,2]
[369024739,1751435476748,-649.830069,0.00021555,2]
[369024741,1751435476763,-649.830069,0.00021555,2]
[369024744,1751435476778,-207.4,0.00021555,2]
[369024746,1751435476793,-5000.0,0.00021555,2]
[369024749,1751435476808,-151.0,0.00021555,2]
[369024752,1751435476824,-690.642,0.00021555,2]
[369024754,1751435476839,-1500.0,0.00021555,2]
[369024757,1751435476854,-500.0,0.00021555,2]
[369024760,1751435476869,-931.80713625,0.00021555,2]
[369024762,1751435476885,-1500.0,0.00021555,2]
[369024765,1751435476899,-1500.0,0.00021555,2]
[369024767,1751435476915,-1500.0,0.00021555,2]
[369024770,1751435476932,-1500.0,0.00021555,2]
[369024773,1751435476947,-1500.0,0.00021555,2]
[369024776,1751435476963,-1500.0,0.00021555,2]
[369024778,1751435476979,-1500.0,0.00021555,2]
[369024781,1751435476993,-1500.0,0.00021555,2]
[369024783,1751435477009,-1500.0,0.00021555,2]
[369024786,1751435477023,-1500.0,0.00021555,2]
[369024788,1751435477038,-469.85040026,0.00021555,2]
[369024791,1751435477053,-1500.0,0.00021555,2]
[369024794,1751435477068,-1500.0,0.00021555,2]
[369024796,1751435477083,-1500.0,0.00021555,2]
[369024799,1751435477100,-1500.0,0.00021555,2]
[369024802,1751435477117,-25000.0,0.00021555,2]
[369024804,1751435477134,-19358.33849298,0.00021555,2]
[369024807,1751435477150,-293.7,0.0002156,5]
[369024809,1751435477165,-3292.0,0.00021572,2]
[369024812,1751435477179,-553.97,0.00021643,2]
[369024814,1751435477195,-460.0,0.00021643,2]
[369024817,1751435477210,-151.0,0.00021643,2]
[369024820,1751435477225,-269.761555,0.00021643,2]
[369024822,1751435477239,-151.0,0.00021643,2]
[369024825,1751435477255,-151.0,0.00021643,2]
[369024828,1751435477270,-151.0,0.00021643,2]
[369024830,1751435477285,-151.0,0.00021643,2]
[369024833,1751435477299,-151.0,0.00021643,2]
[369024835,1751435477314,-151.0,0.00021643,2]
[369024838,1751435477329,-571.82,0.00021643,2]
[369024840,1751435477344,-460.0,0.00021643,2]
[369024843,1751435477358,-460.0,0.00021643,2]
[369024846,1751435477373,-466.63,0.00021643,2]
[369024848,1751435477389,-460.0,0.00021643,2]
[369024850,1751435477406,-460.0,0.00021643,2]
[369024853,1751435477420,-796.28,0.00021643,2]
[369024856,1751435477435,-711.16,0.00021643,2]
[369024858,1751435477453,-505.4,0.00021643,2]
[369024861,1751435477468,-460.0,0.00021643,2]
[369024864,1751435477488,-643.22,0.00021643,2]
[369024866,1751435477503,-539.42,0.00021643,2]
[369024869,1751435477519,-460.0,0.00021643,2]
[369024872,1751435477534,-699.52,0.00021643,2]
[369024874,1751435477548,-759.15,0.00021643,2]
[369024877,1751435477564,-267.38057906,0.00021643,2]
[369024880,1751435477580,-709.55,0.00021643,2]
[369024882,1751435477595,-1052.43,0.00021643,2]
[369024885,1751435477610,-554.53,0.00021643,2]
[369024888,1751435477625,-826.53,0.00021643,2]
[369024890,1751435477640,-1004.9,0.00021643,2]
[369024893,1751435477655,-2911.25,0.00021643,2]
[369024895,1751435477671,-460.0,0.00021643,2]
[369024898,1751435477688,-728.14,0.00021643,2]
[369024901,1751435477701,-491.57,0.00021643,2]
[369024903,1751435477710,-460.0,0.00021643,2]
[369024905,1751435477721,-957.96,0.00021643,2]
[369024907,1751435477731,-540.06,0.00021643,2]
[369024931,1751435477956,-572.44,0.00021643,2]
[369024935,1751435477990,-694.23,0.00021643,2]
[369024938,1751435478000,-610.14,0.00021643,2]
[369024940,1751435478010,-2558.5,0.00021643,2]
[369024942,1751435478020,-1189.61,0.00021643,2]
[369024944,1751435478030,-717.98,0.00021643,2]
[369024946,1751435478039,-1706.54,0.00021643,2]
[369024948,1751435478049,-460.0,0.00021643,2]
[369024950,1751435478058,-460.0,0.00021643,2]
[369024952,1751435478067,-586.28,0.00021643,2]
[369024954,1751435478078,-460.0,0.00021643,2]
[369024956,1751435478088,-542.08,0.00021643,2]
[369024958,1751435478097,-498.33,0.00021643,2]
[369024960,1751435478106,-892.01,0.00021643,2]
[369024962,1751435478116,-557.21,0.00021643,2]
[369024964,1751435478125,-464.91,0.00021643,2]
[369024966,1751435478134,-1982.14,0.00021643,2]
[369024968,1751435478143,-805.18,0.00021643,2]
[369024970,1751435478153,-1305.93,0.00021643,2]
[369024972,1751435478163,-585.63,0.00021643,2]
[369024974,1751435478172,-2303.07,0.00021643,2]
[369024976,1751435478181,-606.45,0.00021643,2]
[369024978,1751435478190,-536.29,0.00021643,2]
[369024980,1751435478200,-601.18,0.00021643,2]
[369024982,1751435478209,-590.71,0.00021643,2]
[369024984,1751435478218,-3397.94,0.00021643,2]
[369024986,1751435478227,-3750.4,0.00021643,2]
[369024988,1751435478237,-1515.14,0.00021643,2]
[369024990,1751435478247,-616.24,0.00021643,2]
[369024992,1751435478257,-292.96,0.00021643,2]
[369024994,1751435478267,-460.0,0.00021643,2]
[369024996,1751435478277,-655.73,0.00021643,2]
[369024998,1751435478286,-460.0,0.00021643,2]
[369025000,1751435478296,-275.34855606,0.00021643,2]
[369025002,1751435478305,-749.23,0.00021643,2]
[369025004,1751435478315,-1462.48,0.00021643,2]
[369025006,1751435478325,-1132.2,0.00021643,2]
[369025008,1751435478335,-460.0,0.00021643,2]
[369025010,1751435478344,-3457.94,0.00021643,2]
[369025012,1751435478354,-831.2,0.00021643,2]
[369025014,1751435478364,-968.29,0.00021643,2]
[369025016,1751435478374,-717.17,0.00021643,2]
[369025019,1751435478384,-1091.0,0.00021779,2]
[369025021,1751435478393,-553.97,0.00021917,2]
[369025023,1751435478405,-460.0,0.00021917,2]
[369025025,1751435478415,-571.82,0.00021917,2]
[369025027,1751435478424,-460.0,0.00021917,2]
[369025029,1751435478434,-460.0,0.00021917,2]
[369025031,1751435478443,-151.0,0.00021917,2]
[369025033,1751435478454,-466.63,0.00021917,2]
[369025035,1751435478464,-460.0,0.00021917,2]
[369025037,1751435478474,-151.0,0.00021917,2]
[369025039,1751435478485,-460.0,0.00021917,2]
[369025041,1751435478494,-796.28,0.00021917,2]
[369025043,1751435478503,-151.0,0.00021917,2]
[369025045,1751435478513,-711.16,0.00021917,2]
[369025047,1751435478523,-151.0,0.00021917,2]
[369025049,1751435478533,-151.0,0.00021917,2]
[369025051,1751435478542,-505.4,0.00021917,2]
[369025053,1751435478552,-460.0,0.00021917,2]
[369025055,1751435478561,-151.0,0.00021917,2]
[369025057,1751435478571,-151.0,0.00021917,2]
[369025059,1751435478580,-643.22,0.00021917,2]
[369025061,1751435478590,-239.905057,0.00021917,2]
[369025063,1751435478599,-239.905057,0.00021917,2]
[369025065,1751435478609,-539.42,0.00021917,2]
[369025067,1751435478619,-678.03142,0.00021917,2]
[369025069,1751435478628,-494.896241,0.00021917,2]
[369025071,1751435478638,-678.03142,0.00021917,2]
[369025073,1751435478647,-494.896241,0.00021917,2]
[369025075,1751435478657,-460.0,0.00021917,2]
[369025077,1751435478667,-151.0,0.00021917,2]
[369025079,1751435478677,-699.52,0.00021917,2]
[369025081,1751435478686,-759.15,0.00021917,2]
[369025083,1751435478696,-709.55,0.00021917,2]
[369025085,1751435478706,-1052.43,0.00021917,2]
[369025087,1751435478715,-554.53,0.00021917,2]
[369025089,1751435478725,-826.53,0.00021917,2]
[369025091,1751435478735,-151.0,0.00021917,2]
[369025094,1751435478745,-1004.9,0.00021917,2]
[369025096,1751435478755,-151.0,0.00021917,2]
[369025098,1751435478765,-2911.25,0.00021917,2]
[369025100,1751435478775,-460.0,0.00021917,2]
[369025102,1751435478785,-151.0,0.00021917,2]
[369025104,1751435478795,-728.14,0.00021917,2]
[369025106,1751435478805,-491.57,0.00021917,2]
[369025108,1751435478815,-460.0,0.00021917,2]
[369025110,1751435478824,-151.0,0.00021917,2]
[369025112,1751435478835,-957.96,0.00021917,2]
[369025114,1751435478847,-540.06,0.00021917,2]
[369025116,1751435478856,-572.44,0.00021917,2]
[369025118,1751435478866,-694.23,0.00021917,2]
[369025120,1751435478876,-610.14,0.00021917,2]
[369025122,1751435478886,-2558.5,0.00021917,2]
[369025124,1751435478896,-1189.61,0.00021917,2]
[369025126,1751435478905,-717.98,0.00021917,2]
[369025128,1751435478915,-1706.54,0.00021917,2]
[369025131,1751435478926,-460.0,0.00021917,2]
[369025133,1751435478936,-460.0,0.00021917,2]
[369025135,1751435478947,-586.28,0.00021917,2]
[369025137,1751435478956,-460.0,0.00021917,2]
[369025139,1751435478966,-542.08,0.00021917,2]
[369025141,1751435478976,-498.33,0.00021917,2]
[369025143,1751435478986,-892.01,0.00021917,2]
[369025145,1751435478996,-1259.483418,0.00021917,2]
[369025147,1751435479006,-1259.483418,0.00021917,2]
[369025149,1751435479016,-557.21,0.00021917,2]
[369025151,1751435479026,-464.91,0.00021917,2]
[369025153,1751435479035,-1982.14,0.00021917,2]
[369025155,1751435479046,-805.18,0.00021917,2]
[369025157,1751435479056,-1305.93,0.00021917,2]
[369025159,1751435479067,-585.63,0.00021917,2]
[369025161,1751435479076,-2303.07,0.00021917,2]
[369025163,1751435479086,-606.45,0.00021917,2]
[369025165,1751435479096,-536.29,0.00021917,2]
[369025167,1751435479105,-601.18,0.00021917,2]
[369025169,1751435479114,-590.71,0.00021917,2]
[369025171,1751435479124,-3397.94,0.00021917,2]
[369025174,1751435479134,-3750.4,0.00021917,2]
[369025175,1751435479143,-1515.14,0.00021917,2]
[369025178,1751435479154,-616.24,0.00021917,2]
[369025180,1751435479163,-460.0,0.00021917,2]
[369025182,1751435479173,-655.73,0.00021917,2]
[369025184,1751435479183,-460.0,0.00021917,2]
[369025186,1751435479193,-749.23,0.00021917,2]
[369025188,1751435479203,-1462.48,0.00021917,2]
[369025190,1751435479213,-460.0,0.00021917,2]
[369025192,1751435479223,-1132.2,0.00021917,2]
[369025194,1751435479233,-3457.94,0.00021917,2]
[369025196,1751435479242,-831.2,0.00021917,2]
[369025198,1751435479251,-717.17,0.00021917,2]
[369025200,1751435479261,-968.29,0.00021917,2]
[369025202,1751435479271,-550.58455267,0.00021949,2]
[369025204,1751435479280,-1091.0,0.00021964,2]
[369025206,1751435479289,-6568.76,0.00022,2]
[369025208,1751435479299,-3224.69,0.00022,7]
[369025210,1751435479308,-367.84,0.00022,7]
[369025212,1751435479318,-151.081595,0.00022,7]
[369025214,1751435479328,-151.0,0.00022,7]
[369025216,1751435479338,-151.0,0.00022,7]
[369025218,1751435479347,-325.640744,0.00022,7]
[369025220,1751435479357,-325.640744,0.00022,7]
[369025222,1751435479367,-151.0,0.00022,7]
[369025224,1751435479376,-151.897169,0.00022,7]
[369025226,1751435479387,-471.973154,0.00022,7]
[369025228,1751435479396,-471.973154,0.00022,7]
[369025230,1751435479410,-151.0,0.00022,7]
[369025232,1751435479420,-760.510455,0.00022,7]
[369025234,1751435479430,-760.510455,0.00022,7]
[369025236,1751435479439,-168.503222,0.00022,7]
[369025238,1751435479450,-168.503222,0.00022,7]
[369025240,1751435479460,-776.260393,0.00022,7]
[369025243,1751435479470,-776.260393,0.00022,7]
[369025245,1751435479480,-293.7,0.0002202,5]
[369025247,1751435479490,-5000.0,0.00022103,2]
[369025249,1751435479500,-553.97,0.00022191,2]
[369025250,1751435479509,-460.0,0.00022191,2]
[369025253,1751435479519,-571.82,0.00022191,2]
[369025255,1751435479529,-151.0,0.00022191,7]
[369025257,1751435479539,-589.32395271,0.00022191,2]
[369025258,1751435479548,-151.0,0.00022191,7]
[369025260,1751435479557,-151.901102,0.00022191,7]
[369025262,1751435479567,-430.46080129,0.00022191,2]
[369025263,1751435479577,-151.0,0.00022191,7]
[369025264,1751435479587,-151.0,0.00022191,7]
[369025265,1751435479596,-466.63,0.00022191,2]
[369025266,1751435479606,-460.0,0.00022191,2]
[369025267,1751435479615,-460.0,0.00022191,2]
[369025268,1751435479626,-796.28,0.00022191,2]
[369025269,1751435479635,-711.16,0.00022191,2]
[369025270,1751435479644,-505.4,0.00022191,2]
[369025271,1751435479654,-460.0,0.00022191,2]
[369025272,1751435479664,-643.22,0.00022191,2]
[369025273,1751435479673,-539.42,0.00022191,2]
[369025274,1751435479683,-284.50404704,0.00022191,2]
[369025275,1751435479693,-699.52,0.00022191,2]
[369025276,1751435479702,-759.15,0.00022191,2]
[369025277,1751435479711,-709.55,0.00022191,2]
[369025278,1751435479721,-1052.43,0.00022191,2]
[369025279,1751435479731,-554.53,0.00022191,2]
[369025281,1751435479740,-826.53,0.00022191,2]
[369025283,1751435479750,-1004.9,0.00022191,2]
[369025285,1751435479760,-2911.25,0.00022191,2]
[369025287,1751435479772,-460.0,0.00022191,2]
[369025289,1751435479782,-728.14,0.00022191,2]
[369025291,1751435479794,-491.57,0.00022191,2]
[369025293,1751435479804,-460.0,0.00022191,2]
[369025295,1751435479815,-957.96,0.00022191,2]
[369025297,1751435479825,-151.0,0.00022191,7]
[369025299,1751435479837,-540.06,0.00022191,2]
[369025301,1751435479847,-572.44,0.00022191,2]
[369025303,1751435479857,-694.23,0.00022191,2]
[369025305,1751435479867,-610.14,0.00022191,2]
[369025307,1751435479878,-2558.5,0.00022191,2]
[369025310,1751435479891,-1189.61,0.00022191,2]
[369025312,1751435479902,-151.0,0.00022191,7]
[369025313,1751435479912,-717.98,0.00022191,2]
[369025316,1751435479922,-1706.54,0.00022191,2]
[369025318,1751435479933,-296.48066166,0.00022191,2]
[369025320,1751435479943,-258.36,0.00022191,2]